[Event "2. Itzehoer Schach Open"]
[Site "Itzehoe, Germany"]
[Date "2023.04.30"]
[Round "3.36"]
[White "Oortmann, Alexis"]
[Black "Neffgen, Klaus"]
[Result "1-0"]
[TimeControl "90 min / 40 Züge + 30 min + 30 Sek pro Zug"]
[WhiteElo "1095"]
[BlackElo "1533"]

1. Nf3 {[%clk 01:30:57]} {[%emt 00:00:02]} d5 {[%clk 01:30:52]} {[%emt
00:00:09]} 2. e3 {[%clk 01:31:22]} {[%emt 00:00:04]} Nf6 {[%clk 01:31:08]}
{[%emt 00:00:14]} 3. c4 {[%clk 01:31:47]} {[%emt 00:00:06]} Bf5 {[%clk
01:31:10]} {[%emt 00:00:28]} 4. cxd5 {[%clk 01:31:49]} {[%emt 00:00:28]} Nxd5
{[%clk 01:30:02]} {[%emt 00:01:38]} 5. e4 {[%clk 01:32:11]} {[%emt 00:00:08]}
Bxe4 {[%clk 01:27:00]} {[%emt 00:03:32]} 6. Qa4+ {[%clk 01:32:32]} {[%emt
00:00:08]} c6 {[%clk 01:27:25]} {[%emt 00:00:06]} 7. Qxe4 {[%clk 01:32:59]}
{[%emt 00:00:03]} Nf6 {[%clk 01:27:07]} {[%emt 00:00:47]} 8. Qc2 {[%clk
01:32:40]} {[%emt 00:00:48]} e6 {[%clk 01:27:06]} {[%emt 00:00:32]} 9. d4
{[%clk 01:32:58]} {[%emt 00:00:13]} h6 {[%clk 01:26:47]} {[%emt 00:00:48]} 10.
g3 {[%clk 01:26:01]} {[%emt 00:07:27]} Bd6 {[%clk 01:20:39]} {[%emt 00:06:38]}
11. Bg2 {[%clk 01:26:13]} {[%emt 00:00:18]} Na6 {[%clk 01:20:32]} {[%emt
00:00:37]} 12. a3 {[%clk 01:25:17]} {[%emt 00:01:26]} Nc7 {[%clk 01:17:27]}
{[%emt 00:03:36]} 13. O-O {[%clk 01:25:31]} {[%emt 00:00:15]} Qe7 {[%clk
01:16:35]} {[%emt 00:01:22]} 14. Nc3 {[%clk 01:25:27]} {[%emt 00:00:34]} O-O-O
{[%clk 01:11:51]} {[%emt 00:05:14]} 15. b4 {[%emt 00:00:51]} Kb8 {[%clk
01:09:10]} {[%emt 00:03:09]} 16. Ne5 {[%clk 01:23:27]} {[%emt 00:02:12]} Bxe5
{[%clk 01:04:11]} {[%emt 00:05:30]} 17. dxe5 {[%clk 01:23:45]} {[%emt
00:00:11]} Nd7 {[%clk 01:03:52]} {[%emt 00:00:49]} 18. Re1 {[%clk 01:23:47]}
{[%emt 00:00:28]} Nb6 {[%clk 00:59:47]} {[%emt 00:04:35]} 19. Be3 {[%clk
01:20:57]} {[%emt 00:03:19]} Nc4 {[%clk 00:56:16]} {[%emt 00:04:02]} 20. Bc5
{[%clk 01:20:56]} {[%emt 00:00:31]} Qe8 {[%clk 00:47:49]} {[%emt 00:08:56]} 21.
Ne4 {[%clk 01:16:36]} {[%emt 00:04:51]} Nb6 {[%clk 00:44:34]} {[%emt 00:03:45]}
22. Nd6 {[%clk 01:16:36]} {[%emt 00:00:30]} Qg8 {[%clk 00:42:36]} {[%emt
00:02:28]} 23. b5 {[%clk 01:14:48]} {[%emt 00:02:19]} Nxb5 {[%clk 00:39:17]}
{[%emt 00:03:48]} 24. Nxb5 {[%clk 01:15:04]} {[%emt 00:00:13]} cxb5 {[%clk
00:39:45]} {[%emt 00:00:03]} 25. Bd6+ {[%clk 01:15:07]} {[%emt 00:00:27]} Ka8
{[%clk 00:39:28]} {[%emt 00:00:47]} 26. Qc7 {[%clk 01:12:49]} {[%emt 00:02:48]}
Nd5 {[%clk 00:38:15]} {[%emt 00:01:43]} 27. Qa5 {[%clk 01:09:02]} {[%emt
00:04:16]} Qe8 {[%clk 00:36:41]} {[%emt 00:02:05]} 28. a4 {[%clk 01:08:27]}
{[%emt 00:01:06]} b4 {[%clk 00:34:18]} {[%emt 00:02:52]} 29. Reb1 {[%clk
01:06:40]} {[%emt 00:02:17]} Qd7 {[%clk 00:29:15]} {[%emt 00:05:34]} 30. Bxb4
{[%clk 00:57:53]} {[%emt 00:09:16]} Rc8 {[%clk 00:28:26]} {[%emt 00:01:19]} 31.
Bc5 {[%clk 00:55:50]} {[%emt 00:02:33]} a6 {[%clk 00:26:56]} {[%emt 00:02:00]}
32. Rb2 {[%clk 00:47:45]} {[%emt 00:08:35]} Rc6 {[%clk 00:24:14]} {[%emt
00:03:11]} 33. Rab1 {[%clk 00:46:30]} {[%emt 00:01:45]} Rhc8 {[%clk 00:23:45]}
{[%emt 00:01:00]} 34. Bd6 {[%clk 00:45:15]} {[%emt 00:01:46]} Rc1+ {[%clk
00:22:33]} {[%emt 00:01:42]} 35. Bf1 {[%emt 00:07:14]} Rxb1 {[%clk 00:19:39]}
36. Rxb1 {[%clk 00:42:15]} {[%emt 00:00:08]} Qc6 {[%clk 00:16:26]} {[%emt
00:03:43]} 37. Qd2 {[%clk 00:37:10]} {[%emt 00:05:28]} Qxa4 {[%clk 00:14:49]}
{[%emt 00:02:13]} 38. Rc1 {[%clk 00:31:29]} {[%emt 00:06:11]} Rxc1 {[%clk
00:12:24]} {[%emt 00:02:56]} 39. Qxc1 {[%clk 00:31:53]} {[%emt 00:00:06]} Qd7
{[%clk 00:11:58]} {[%emt 00:00:56]} 40. Bf8 {[%clk 00:30:20]} {[%emt 00:02:02]}
Qc7 {[%clk 00:06:21]} {[%emt 00:06:07]} 41. Qxc7 {[%clk 00:29:25]} {[%emt
00:01:25]} Nxc7 {[%clk 00:06:49]} {[%emt 00:00:02]} 42. Bxg7 {[%clk 00:29:42]}
{[%emt 00:00:13]} h5 {[%clk 00:06:58]} {[%emt 00:00:21]} 43. Be2 {[%clk
00:28:11]} {[%emt 00:02:02]} b5 {[%clk 00:05:59]} {[%emt 00:01:29]} 44. Bf8
{[%clk 00:28:22]} {[%emt 00:00:17]} Nd5 {[%clk 00:06:00]} {[%emt 00:00:30]} 45.
Bxh5 {[%clk 00:28:02]} {[%emt 00:00:49]} b4 {[%clk 00:06:22]} {[%emt 00:00:09]}
46. Be2 {[%clk 00:27:54]} {[%emt 00:00:34]} b3 {[%clk 00:06:25]} {[%emt
00:00:31]} 47. Bxa6 {[%clk 00:26:58]} {[%emt 00:01:26]} b2 {[%clk 00:06:01]}
{[%emt 00:00:54]} 48. Bd3 {[%clk 00:27:11]} {[%emt 00:00:16]} Nc3 {[%clk
00:05:45]} {[%emt 00:00:47]} 49. h4 {[%clk 00:27:01]} {[%emt 00:00:40]} b1=Q+
50. Bxb1 {[%clk 00:27:26]} Nxb1 {[%clk 00:06:42]} 51. h5 {[%clk 00:27:32]}
{[%emt 00:00:28]} 1-0

[Event "2. Itzehoer Schach Open"]
[Site "Itzehoe, Germany"]
[Date "2023.04.30"]
[Round "3.14"]
[White "Trapp, Hannes"]
[Black "Thomas, Jeremy"]
[Result "1-0"]
[TimeControl "90 min / 40 Züge + 30 min + 30 Sek pro Zug"]
[WhiteElo "1677"]
[BlackElo "1894"]

1. e4 {[%clk 01:30:54]} {[%emt 00:00:06]} c5 {[%clk 01:30:40]} {[%emt
00:00:21]} 2. Nf3 {[%clk 01:31:17]} {[%emt 00:00:06]} d6 {[%clk 01:31:03]}
{[%emt 00:00:07]} 3. d4 {[%clk 01:31:38]} {[%emt 00:00:09]} cxd4 {[%clk
01:31:28]} {[%emt 00:00:05]} 4. Nxd4 {[%clk 01:32:01]} {[%emt 00:00:07]} Nf6
{[%clk 01:31:55]} {[%emt 00:00:04]} 5. Nc3 {[%clk 01:31:13]} {[%emt 00:01:17]}
a6 {[%clk 01:32:18]} {[%emt 00:00:08]} 6. Bc4 {[%clk 01:28:32]} {[%emt
00:03:10]} e6 {[%clk 01:26:38]} {[%emt 00:06:11]} 7. Qe2 {[%clk 01:26:23]}
{[%emt 00:02:38]} Nc6 {[%clk 01:21:05]} {[%emt 00:06:03]} 8. Nxc6 {[%clk
01:25:54]} {[%emt 00:00:59]} bxc6 {[%clk 01:21:29]} {[%emt 00:00:06]} 9. e5
{[%clk 01:26:12]} {[%emt 00:00:11]} Nd5 {[%clk 01:20:11]} {[%emt 00:01:49]} 10.
Nxd5 {[%clk 01:19:16]} {[%emt 00:07:26]} cxd5 {[%clk 01:18:44]} {[%emt
00:01:58]} 11. Bd3 {[%clk 01:19:38]} {[%emt 00:00:08]} Bb7 {[%clk 01:13:52]}
{[%emt 00:05:22]} 12. O-O {[%clk 01:19:47]} {[%emt 00:00:21]} Qc7 {[%clk
01:10:01]} {[%emt 00:04:20]} 13. Bf4 {[%clk 01:19:03]} {[%emt 00:01:14]} Qc6
{[%clk 01:03:28]} {[%emt 00:07:04]} 14. Rfe1 {[%clk 01:16:18]} {[%emt
00:03:15]} Be7 {[%clk 01:00:29]} {[%emt 00:03:29]} 15. Qg4 {[%clk 01:16:18]}
{[%emt 00:00:29]} g6 {[%clk 00:59:19]} {[%emt 00:01:40]} 16. Qg3 {[%clk
01:15:59]} {[%emt 00:00:49]} g5 {[%clk 00:50:09]} {[%emt 00:09:40]} 17. Bd2
{[%clk 01:08:33]} {[%emt 00:07:56]} Kd7 {[%clk 00:39:59]} {[%emt 00:10:40]} 18.
exd6 {[%clk 00:55:03]} {[%emt 00:14:00]} Qxd6 {[%clk 00:39:48]} {[%emt
00:00:41]} 19. Qxd6+ {[%clk 00:55:01]} {[%emt 00:00:32]} Kxd6 {[%clk 00:40:02]}
{[%emt 00:00:15]} 20. Bc3 {[%clk 00:54:25]} {[%emt 00:01:06]} f6 {[%clk
00:40:14]} {[%emt 00:00:18]} 21. Rad1 {[%clk 00:53:18]} {[%emt 00:01:36]} e5
{[%clk 00:32:19]} {[%emt 00:08:25]} 22. Bf5 {[%clk 00:51:30]} {[%emt 00:02:18]}
a5 {[%clk 00:31:52]} {[%emt 00:00:58]} 23. a3 {[%clk 00:50:45]} {[%emt
00:01:16]} Bc8 {[%clk 00:30:32]} {[%emt 00:01:49]} 24. Rxd5+ {[%clk 00:50:38]}
{[%emt 00:00:37]} Kxd5 {[%clk 00:22:14]} {[%emt 00:08:48]} 25. Be4+ {[%clk
00:51:01]} {[%emt 00:00:07]} Kc4 {[%clk 00:19:52]} {[%emt 00:02:50]} 26. Bxa8
{[%clk 00:51:19]} {[%emt 00:00:14]} Bf5 {[%clk 00:16:22]} {[%emt 00:04:00]} 27.
Be4 {[%clk 00:50:51]} {[%emt 00:00:57]} Bxe4 {[%clk 00:16:35]} {[%emt
00:00:18]} 28. Rxe4+ {[%clk 00:51:14]} {[%emt 00:00:07]} Kb5 {[%clk 00:16:56]}
{[%emt 00:00:09]} 29. Kf1 {[%clk 00:50:51]} {[%emt 00:00:52]} Rc8 {[%clk
00:16:22]} {[%emt 00:01:04]} 30. Re3 {[%clk 00:50:17]} {[%emt 00:01:04]} Bc5
{[%clk 00:15:17]} {[%emt 00:01:35]} 31. Rf3 {[%clk 00:49:38]} {[%emt 00:01:09]}
Rc6 {[%clk 00:14:57]} {[%emt 00:00:51]} 32. g4 {[%clk 00:49:28]} {[%emt
00:00:40]} a4 {[%clk 00:13:33]} {[%emt 00:01:55]} 33. Ke2 {[%clk 00:49:05]}
{[%emt 00:00:52]} Kc4 {[%clk 00:12:56]} {[%emt 00:01:08]} 34. Bd2 {[%clk
00:46:15]} {[%emt 00:03:20]} Rb6 {[%clk 00:11:36]} {[%emt 00:01:51]} 35. Rc3+
{[%clk 00:45:32]} {[%emt 00:01:12]} Kd5 {[%clk 00:09:33]} {[%emt 00:02:33]} 36.
Rxc5+ {[%clk 00:45:56]} {[%emt 00:00:06]} Kxc5 {[%clk 00:09:48]} {[%emt
00:00:16]} 37. Be3+ {[%clk 00:46:20]} {[%emt 00:00:05]} Kc6 {[%clk 00:10:06]}
{[%emt 00:00:12]} 38. Bxb6 {[%clk 00:46:44]} {[%emt 00:00:06]} Kxb6 {[%clk
00:10:33]} {[%emt 00:00:03]} 39. b4 {[%clk 00:47:06]} {[%emt 00:00:08]} Kb5
{[%clk 00:10:35]} {[%emt 00:00:29]} 40. Kd3 {[%clk 00:47:28]} {[%emt 00:00:06]}
1-0

[Event "2. Itzehoer Schach Open"]
[Site "Itzehoe, Germany"]
[Date "2023.04.30"]
[Round "3.30"]
[White "Bartels, Jens"]
[Black "Liu, Jan Luca"]
[Result "0-1"]
[TimeControl "90 min / 40 Züge + 30 min + 30 Sek pro Zug"]
[WhiteElo "1589"]
[BlackElo "1073"]

1. Nf3 {[%clk 01:30:53]} {[%emt 00:00:06]} Nc6 {[%clk 01:30:52]} {[%emt
00:00:09]} 2. c4 {[%clk 01:30:43]} {[%emt 00:00:39]} e5 {[%clk 01:31:03]}
{[%emt 00:00:20]} 3. Nc3 {[%clk 01:30:21]} {[%emt 00:00:52]} Nf6 {[%clk
01:30:36]} {[%emt 00:00:57]} 4. d3 {[%clk 01:29:39]} {[%emt 00:01:12]} d5
{[%clk 01:26:37]} {[%emt 00:04:29]} 5. Bg5 {[%clk 01:27:55]} {[%emt 00:02:13]}
d4 {[%clk 01:24:45]} {[%emt 00:02:23]} 6. Nd5 {[%clk 01:27:59]} {[%emt
00:00:26]} Be7 {[%clk 01:24:27]} {[%emt 00:00:47]} 7. Bxf6 {[%clk 01:27:44]}
{[%emt 00:00:47]} Bxf6 {[%clk 01:24:45]} {[%emt 00:00:11]} 8. b4 {[%clk
01:25:14]} {[%emt 00:03:01]} Ne7 {[%clk 01:24:28]} {[%emt 00:00:46]} 9. Nxf6+
{[%clk 01:24:47]} {[%emt 00:00:57]} gxf6 {[%clk 01:23:44]} {[%emt 00:01:13]} 10.
g3 {[%clk 01:25:04]} {[%emt 00:00:14]} b6 {[%clk 01:23:14]} {[%emt 00:01:01]}
11. Bg2 {[%clk 01:25:17]} {[%emt 00:00:16]} Bb7 {[%clk 01:23:31]} {[%emt
00:00:14]} 12. O-O {[%clk 01:24:37]} {[%emt 00:01:10]} Qd6 {[%clk 01:23:05]}
{[%emt 00:00:56]} 13. Qd2 {[%clk 01:23:54]} {[%emt 00:01:11]} f5 {[%clk
01:22:30]} {[%emt 00:01:06]} 14. b5 {[%clk 01:21:25]} {[%emt 00:03:00]} Rg8
{[%clk 01:21:29]} {[%emt 00:01:30]} 15. Nh4 {[%clk 01:18:33]} {[%emt 00:03:22]}
Bxg2 {[%clk 01:18:24]} {[%emt 00:03:35]} 16. Kxg2 {[%clk 01:17:00]} {[%emt
00:02:03]} e4 {[%clk 01:17:45]} {[%emt 00:01:09]} 17. a4 {[%clk 01:13:54]}
{[%emt 00:03:37]} c6 {[%clk 01:11:35]} {[%emt 00:06:39]} 18. dxe4 {[%clk
01:13:49]} {[%emt 00:00:34]} cxb5 {[%clk 01:11:25]} {[%emt 00:00:40]} 19. axb5
{[%clk 01:13:31]} {[%emt 00:00:48]} fxe4 {[%clk 01:11:36]} {[%emt 00:00:20]} 20.
Rfd1 {[%clk 01:12:20]} {[%emt 00:01:40]} Rd8 {[%clk 01:10:25]} {[%emt
00:01:41]} 21. Rxa7 {[%clk 01:11:55]} {[%emt 00:00:55]} Qf6 {[%clk 01:10:01]}
{[%emt 00:00:53]} 22. Kf1 {[%clk 01:06:24]} {[%emt 00:06:01]} e3 {[%clk
01:10:10]} {[%emt 00:00:22]} 23. Qe1 {[%clk 01:06:41]} {[%emt 00:00:13]} Ng6
{[%emt 00:10:42]} 24. Nxg6 {[%clk 00:56:09]} {[%emt 00:03:36]} fxg6 {[%clk
01:07:39]} {[%emt 00:00:16]} 25. Rxh7 {[%clk 00:55:52]} {[%emt 00:00:46]} Rf8
{[%clk 01:07:31]} {[%emt 00:00:39]} 26. f3 {[%clk 00:55:54]} {[%emt 00:00:28]}
d3 {[%clk 01:07:23]} {[%emt 00:00:39]} 27. Kg2 {[%clk 00:53:11]} {[%emt
00:03:12]} d2 {[%clk 01:07:06]} {[%emt 00:00:47]} 28. Qg1 {[%clk 00:53:14]}
{[%emt 00:00:25]} Qc3 {[%clk 01:06:37]} {[%emt 00:01:00]} 29. Rh4 {[%clk
00:50:47]} {[%emt 00:02:57]} Kf7 {[%clk 01:06:35]} {[%emt 00:00:32]} 30. Rh7+
{[%clk 00:39:02]} {[%emt 00:12:14]} Kg8 {[%clk 01:05:25]} {[%emt 00:01:41]} 31.
Ra7 {[%clk 00:34:18]} {[%emt 00:05:11]} Rfe8 {[%clk 01:05:02]} {[%emt
00:00:56]} 32. Rb7 {[%clk 00:31:17]} {[%emt 00:03:32]} Rd6 {[%clk 01:04:55]}
{[%emt 00:00:37]} 33. Rc7 {[%clk 00:31:23]} {[%emt 00:00:24]} Ra8 {[%clk
01:03:18]} {[%emt 00:02:06]} 34. Re7 {[%clk 00:27:46]} {[%emt 00:04:07]} Ra3
{[%clk 01:00:19]} {[%emt 00:03:29]} 35. f4 {[%clk 00:24:49]} {[%emt 00:03:26]}
Rd8 {[%clk 00:59:45]} {[%emt 00:01:05]} 36. Kf3 {[%clk 00:21:34]} {[%emt
00:03:44]} Qxc4 {[%clk 00:58:23]} {[%emt 00:01:52]} 37. Rxe3 {[%clk 00:20:27]}
{[%emt 00:01:37]} Qd5+ {[%clk 00:58:42]} {[%emt 00:00:12]} 38. Kf2 {[%clk
00:19:05]} {[%emt 00:01:51]} Rxe3 {[%clk 00:58:49]} {[%emt 00:00:23]} 39. Kxe3
{[%clk 00:17:59]} {[%emt 00:01:36]} Qc5+ {[%clk 00:59:15]} {[%emt 00:00:04]} 40.
Ke4 {[%clk 00:16:34]} {[%emt 00:01:55]} Qxg1 {[%clk 00:59:20]} {[%emt
00:00:25]} 41. Rxg1 {[%clk 00:16:47]} {[%emt 00:00:17]} d1=Q 42. Rxd1 {[%clk
00:17:13]} Rxd1 {[%clk 01:00:04]} {[%emt 00:00:12]} 43. Ke5 {[%clk 00:17:37]}
{[%emt 00:00:06]} Kf7 {[%clk 01:00:14]} {[%emt 00:00:20]} 44. e4 {[%clk
00:18:03]} {[%emt 00:00:04]} Rb1 {[%clk 01:00:33]} {[%emt 00:00:10]} 45. Kd4
{[%clk 00:17:27]} {[%emt 00:01:06]} Rxb5 {[%clk 01:00:56]} {[%emt 00:00:08]} 46.
e5 {[%clk 00:17:09]} {[%emt 00:00:47]} Ke6 {[%clk 01:01:19]} {[%emt 00:00:07]}
0-1

[Event "2. Itzehoer Schach Open"]
[Site "Itzehoe, Germany"]
[Date "2023.04.30"]
[Round "3.7"]
[White "Neumann, Frank"]
[Black "Richter, Ruediger"]
[Result "1-0"]
[TimeControl "90 min / 40 Züge + 30 min + 30 Sek pro Zug"]
[WhiteElo "2030"]
[BlackElo "1869"]

1. d4 {[%clk 01:27:56]} {[%emt 00:03:03]} d5 {[%clk 01:30:53]} {[%emt
00:00:07]} 2. c4 {[%clk 01:28:23]} {[%emt 00:00:04]} c6 {[%clk 01:31:16]}
{[%emt 00:00:07]} 3. Nf3 {[%clk 01:28:43]} {[%emt 00:00:10]} Nf6 {[%clk
01:31:38]} {[%emt 00:00:07]} 4. g3 {[%clk 01:28:54]} {[%emt 00:00:20]} dxc4
{[%clk 01:30:50]} {[%emt 00:01:17]} 5. Bg2 {[%clk 01:29:05]} {[%emt 00:00:19]}
Nbd7 {[%clk 01:31:07]} {[%emt 00:00:13]} 6. a4 {[%clk 01:29:05]} {[%emt
00:00:31]} e6 {[%clk 01:30:57]} {[%emt 00:00:39]} 7. O-O {[%clk 01:19:51]}
{[%emt 00:09:45]} a5 {[%clk 01:27:37]} {[%emt 00:03:49]} 8. Na3 {[%clk
01:11:14]} {[%emt 00:09:07]} Nb6 {[%clk 01:24:56]} {[%emt 00:03:11]} 9. Ne5
{[%clk 01:08:25]} {[%emt 00:03:19]} Be7 {[%clk 01:22:49]} {[%emt 00:02:38]} 10.
Naxc4 {[%clk 01:07:22]} {[%emt 00:01:33]} Nxc4 {[%clk 01:23:08]} {[%emt
00:00:12]} 11. Nxc4 {[%clk 01:07:50]} {[%emt 00:00:01]} Nd5 {[%clk 01:23:05]}
{[%emt 00:00:32]} 12. e4 {[%clk 01:04:10]} {[%emt 00:04:09]} Nb4 {[%clk
01:23:29]} {[%emt 00:00:08]} 13. Be3 {[%clk 01:03:52]} {[%emt 00:00:47]} O-O
{[%clk 01:20:50]} {[%emt 00:03:09]} 14. Qb3 {[%clk 01:02:18]} {[%emt 00:02:04]}
b5 {[%clk 01:14:06]} {[%emt 00:07:15]} 15. Ne5 {[%clk 00:58:40]} {[%emt
00:04:08]} Bf6 {[%clk 01:12:45]} {[%emt 00:01:50]} 16. Nxc6 {[%clk 00:55:00]}
{[%emt 00:04:10]} Nxc6 {[%clk 01:10:37]} {[%emt 00:02:38]} 17. e5 {[%clk
00:55:07]} {[%emt 00:00:23]} Bd7 {[%clk 00:48:16]} {[%emt 00:22:51]} 18. axb5
{[%clk 00:51:23]} {[%emt 00:04:15]} Rb8 {[%clk 00:48:23]} {[%emt 00:00:22]} 19.
exf6 {[%clk 00:50:36]} {[%emt 00:01:18]} Qxf6 {[%clk 00:47:21]} {[%emt
00:01:31]} 20. Qc4 {[%clk 00:44:53]} {[%emt 00:06:12]} Ne7 {[%clk 00:45:05]}
{[%emt 00:02:47]} 21. Rxa5 {[%clk 00:43:47]} {[%emt 00:01:37]} Rfc8 {[%clk
00:45:00]} {[%emt 00:00:35]} 22. Qd3 {[%clk 00:40:00]} {[%emt 00:04:17]} Nd5
{[%clk 00:39:39]} {[%emt 00:05:51]} 23. Rc1 {[%clk 00:36:20]} {[%emt 00:04:08]}
Rxc1+ {[%clk 00:36:21]} {[%emt 00:03:50]} 24. Bxc1 {[%clk 00:36:48]} {[%emt
00:00:03]} Qd8 {[%clk 00:36:36]} {[%emt 00:00:14]} 25. Bd2 {[%clk 00:34:20]}
{[%emt 00:02:57]} Nc7 {[%clk 00:30:37]} {[%emt 00:06:29]} 26. Bc6 {[%clk
00:26:44]} {[%emt 00:08:06]} Nd5 {[%clk 00:24:21]} {[%emt 00:06:46]} 27. Qa3
{[%clk 00:22:21]} {[%emt 00:04:53]} h6 {[%clk 00:23:09]} {[%emt 00:01:42]} 28.
Qd6 {[%clk 00:19:40]} {[%emt 00:03:11]} Bxc6 {[%clk 00:19:30]} {[%emt
00:04:10]} 29. Qxd8+ {[%clk 00:20:00]} {[%emt 00:00:09]} Rxd8 {[%clk 00:19:54]}
{[%emt 00:00:06]} 30. bxc6 {[%clk 00:20:23]} {[%emt 00:00:07]} Rc8 {[%clk
00:20:04]} {[%emt 00:00:20]} 31. Rc5 {[%clk 00:20:18]} {[%emt 00:00:35]} Kf8
{[%clk 00:17:02]} {[%emt 00:03:32]} 32. b4 {[%clk 00:19:40]} {[%emt 00:01:08]}
Ke7 {[%clk 00:17:25]} {[%emt 00:00:08]} 33. b5 {[%clk 00:19:24]} {[%emt
00:00:46]} Kd6 {[%clk 00:17:40]} {[%emt 00:00:15]} 34. Bf4+ {[%clk 00:18:30]}
{[%emt 00:01:24]} Nxf4 {[%clk 00:17:26]} {[%emt 00:00:44]} 35. gxf4 {[%clk
00:18:58]} {[%emt 00:00:02]} Kc7 {[%clk 00:17:28]} {[%emt 00:00:28]} 36. f5
{[%clk 00:15:43]} {[%emt 00:03:44]} Kb6 {[%clk 00:16:28]} {[%emt 00:01:30]} 37.
fxe6 {[%clk 00:15:49]} {[%emt 00:00:25]} fxe6 {[%clk 00:16:57]} 38. f3 {[%clk
00:07:28]} {[%emt 00:08:50]} Kc7 {[%clk 00:16:58]} {[%emt 00:00:30]} 39. Kf2
{[%clk 00:07:23]} {[%emt 00:00:35]} Kd6 {[%clk 00:15:08]} {[%emt 00:02:19]} 40.
h4 {[%clk 00:06:38]} {[%emt 00:01:15]} g6 {[%clk 00:15:31]} {[%emt 00:00:08]}
41. Ke3 {[%clk 00:06:34]} {[%emt 00:00:33]} Rc7 {[%clk 00:12:23]} {[%emt
00:03:39]} 42. Kd3 {[%clk 00:06:22]} {[%emt 00:00:42]} Rc8 {[%clk 00:12:14]}
{[%emt 00:00:39]} 43. Kc4 {[%clk 00:06:29]} {[%emt 00:00:23]} g5 {[%clk
00:11:20]} {[%emt 00:01:23]} 44. hxg5 {[%clk 00:06:26]} {[%emt 00:00:33]} h5
{[%clk 00:11:42]} {[%emt 00:00:09]} 45. g6 {[%clk 00:06:47]} {[%emt 00:00:09]}
h4 {[%clk 00:12:10]} {[%emt 00:00:02]} 46. Rh5 {[%clk 00:06:42]} {[%emt
00:00:34]} Rg8 {[%clk 00:12:29]} {[%emt 00:00:11]} 47. Rh7 {[%clk 00:06:29]}
{[%emt 00:00:43]} e5 {[%clk 00:12:09]} {[%emt 00:00:51]} 48. d5 {[%clk
00:06:36]} {[%emt 00:00:23]} e4 {[%clk 00:12:22]} {[%emt 00:00:18]} 49. f4
{[%clk 00:06:33]} {[%emt 00:00:31]} Rxg6 {[%clk 00:12:28]} {[%emt 00:00:24]} 50.
Rd7# {[%emt 00:00:35]} 1-0